fUSD/lending_fUSD_20250405
["ID","MTS","AMOUNT","RATE_DAILY","PERIOD"]
[357162460,1743831571333,-151.17,0.0002,2]
[357162461,1743831571355,-151.17,0.0002,2]
[357162462,1743831571377,-151.17,0.0002,2]
[357162463,1743831571397,-151.17,0.0002,2]
[357162464,1743831571419,-151.17,0.0002,2]
[357162465,1743831571440,-151.17,0.0002,2]
[357162466,1743831571461,-151.17,0.0002,2]
[357162467,1743831571483,-151.17,0.0002,2]
[357162468,1743831571504,-151.17,0.0002,2]
[357162469,1743831571525,-151.17,0.0002,2]
[357162470,1743831571546,-151.17,0.0002,2]
[357162471,1743831571567,-151.17,0.0002,2]
[357162472,1743831571588,-151.17,0.0002,2]
[357162473,1743831571610,-151.17,0.0002,2]
[357162474,1743831571631,-151.17,0.0002,2]
[357162475,1743831571652,-151.17,0.0002,2]
[357162476,1743831571678,-151.17,0.0002,2]
[357162477,1743831571699,-151.17,0.0002,2]
[357162478,1743831571721,-151.17,0.0002,2]
[357162479,1743831571743,-151.17,0.0002,2]
[357162480,1743831571763,-151.17,0.0002,2]
[357162481,1743831571785,-151.17,0.0002,2]
[357162482,1743831571806,-151.17,0.0002,2]
[357162483,1743831571826,-151.17,0.0002,2]
[357162484,1743831571847,-151.0,0.0002,2]
[357162485,1743831571867,-151.0,0.0002,2]
[357162486,1743831571888,-151.0,0.0002,2]
[357162487,1743831571909,-151.0,0.0002,2]
[357162488,1743831571929,-159.0,0.0002,2]
[357162489,1743831571951,-155.083694,0.0002,2]
[357162490,1743831571972,-151.0,0.0002,2]
[357162491,1743831571992,-151.0,0.0002,2]
[357162492,1743831572013,-151.0,0.0002,2]
[357162493,1743831572033,-331.21933121,0.0002,2]
[357162494,1743831572055,-151.0,0.0002,2]
[357162495,1743831572076,-448.10573,0.0002,2]
[357162496,1743831572098,-448.10573,0.0002,2]
[357162497,1743831572119,-151.0,0.0002,2]
[357162498,1743831572140,-500.0,0.0002,2]
[357162499,1743831572229,1493.93,0.00019874,2]
[357162500,1743831586693,314.4161,0.000199,2]
[357162502,1743831608755,200.0,0.0002,2]
[357162503,1743831614313,151.0,0.0001999,2]
[357162504,1743831615584,178.6223902,0.00019399,2]
[357162505,1743831625581,-6827.7366181,0.00020098,2]
[357162506,1743831625602,-11236.2099971,0.00020112,2]
[357162507,1743831625622,-4518.3659845,0.00020126,2]
[357162508,1743831625645,-150.0,0.0002014,7]
[357162509,1743831625666,-1668.78664017,0.0002015,2]
[357162510,1743831625687,-200.0,0.000202,2]
[357162511,1743831625709,-200.0,0.00020402,2]
[357162512,1743831625733,-200.0,0.00020606,2]
[357162513,1743831625753,-200.0,0.00020812,2]
[357162514,1743831625775,-167.38,0.00020903,2]
[357162515,1743831625796,-1151.16038163,0.00021,2]
[357162516,1743831625816,-189.99330838,0.00021,2]
[357162517,1743831625837,-490.0,0.00021,2]
[357162518,1743831625858,-300.0,0.00021132,2]
[357162519,1743831625879,-350.0,0.00021339,12]
[357162520,1743831625900,-350.0,0.00021614,12]
[357162521,1743831625920,-152.63,0.00021639,2]
[357162522,1743831625941,-150.0,0.00021917,2]
[357162523,1743831625963,-166.25,0.0002198,2]
[357162524,1743831625986,-1182.08,0.00022017,2]
[357162525,1743831626008,-250.0,0.00022108,2]
[357162526,1743831626030,-1000.0,0.00022136,2]
[357162527,1743831626052,-1493.93,0.00022138,2]
[357162528,1743831626072,-300.0,0.00022242,2]
[357162529,1743831626093,-168.94,0.00022384,2]
[357162530,1743831626115,-167.38,0.00022496,2]
[357162531,1743831626137,-2000.0,0.000225,4]
[357162532,1743831626158,-300.0,0.00022501,2]
[357162533,1743831626179,-503.71558861,0.0002271,2]
[357162534,1743831626200,-370.0,0.000229,2]
[357162535,1743831626220,-304.0,0.000229,2]
[357162536,1743831626241,-234.0,0.000229,2]
[357162537,1743831626261,-987.5,0.000229,2]
[357162538,1743831626282,-1366.0,0.0002298,2]
[357162539,1743831626305,-574.0,0.0002298,2]
[357162540,1743831626326,-790.0,0.0002298,2]
[357162541,1743831626348,-1435.0,0.0002298,2]
[357162542,1743831626368,-1276.0,0.0002298,2]
[357162543,1743831626391,-543.0,0.0002298,2]
[357162544,1743831626411,-1119.0,0.0002298,2]
[357162545,1743831626432,-150.0,0.0002299,2]
[357162546,1743831626453,-2042.0,0.0002299,2]
[357162547,1743831626475,-151.0,0.0002299,2]
[357162548,1743831626496,-402.06534031,0.0002301,2]
[357162549,1743831626517,-166.25,0.00023189,2]
[357162550,1743831626539,-150.0,0.00023287,2]
[357162551,1743831626561,-866.46,0.00023836,2]
[357162552,1743831626583,-152.63,0.00024043,2]
[357162553,1743831626604,-1808.39,0.00024174,2]
[357162554,1743831626625,-166.25,0.00024398,2]
[357162555,1743831626647,-1493.93,0.00024402,2]
[357162556,1743831626669,-1000.0,0.00024595,2]
[357162557,1743831626690,-150.0,0.00024657,2]
[357162558,1743831626712,-1000.0,0.00024658,2]
[357162559,1743831626733,-500.0,0.00024773,2]
[357162560,1743831626753,-500.0,0.00024773,2]
[357162561,1743831626774,-500.0,0.00024773,2]
[357162562,1743831626794,-153.105711,0.000248,7]
[357162563,1743831626816,-152.300917,0.000248,7]
[357162564,1743831626837,-151.0,0.000248,7]
[357162565,1743831626858,-151.0,0.000248,7]
[357162566,1743831626879,-151.0,0.000248,7]
[357162567,1743831626899,-151.0,0.000248,7]
[357162568,1743831626920,-151.0,0.000248,7]
[357162569,1743831626941,-151.0,0.000248,7]
[357162570,1743831626961,-151.0,0.000248,7]
[357162571,1743831626982,-151.0,0.000248,7]
[357162572,1743831627002,-151.0,0.000248,7]
[357162573,1743831627023,-171.710996,0.000248,7]
[357162574,1743831627045,-171.710996,0.000248,7]
[357162575,1743831627068,-153.233895,0.000248,7]
[357162576,1743831627092,-152.213631,0.000248,7]
[357162577,1743831627116,-162.795955,0.000248,7]
[357162578,1743831627137,-162.795955,0.000248,7]
[357162579,1743831627160,-151.0,0.000248,7]
[357162580,1743831627181,-151.0,0.000248,7]
[357162581,1743831627204,-156.499226,0.000248,7]
[357162582,1743831627226,-156.499226,0.000248,7]
[357162583,1743831627361,-151.0,0.000248,7]
[357162584,1743831627386,-1418.878251,0.000248,7]
[357162585,1743831627408,-1418.878251,0.000248,7]
[357162586,1743831627430,-151.0,0.000248,7]
[357162587,1743831627453,-151.0,0.000248,7]
[357162588,1743831627475,-155.411799,0.000248,7]
[357162589,1743831627496,-151.0,0.000248,7]
[357162590,1743831627519,-479.299348,0.000248,7]
[357162591,1743831627541,-479.299348,0.000248,7]
[357162592,1743831627562,-151.0,0.000248,7]
[357162593,1743831627583,-151.0,0.000248,7]
[357162594,1743831627603,-181.926573,0.000248,7]
[357162595,1743831627627,-152.808832,0.000248,7]
[357162596,1743831627651,-155.55734,0.000248,7]
[357162597,1743831627673,-151.0,0.000248,7]
[357162598,1743831627697,-181.926573,0.000248,7]
[357162599,1743831627719,-161.897521,0.000248,7]
[357162600,1743831627741,-151.0,0.000248,7]
[357162601,1743831627762,-180.568901,0.000248,7]
[357162602,1743831627784,-151.0,0.000248,7]
[357162603,1743831627807,-151.0,0.000248,7]
[357162604,1743831627830,-401061.860031,0.000248,3]
[357162605,1743831627853,-151.0,0.000248,7]
[357162606,1743831627876,-151.0,0.000248,7]
[357162607,1743831627898,-448.10573,0.000248,7]
[357162608,1743831627920,-448.10573,0.000248,7]
[357162609,1743831627942,-151.0,0.000248,7]
[357162610,1743831627964,-151.0,0.000248,7]
[357162611,1743831627986,-151.0,0.000248,7]
[357162612,1743831628009,-1501.63692,0.000248,7]
[357162613,1743831628030,-151.0,0.000248,7]
[357162614,1743831628053,-1501.63692,0.000248,7]
[357162615,1743831628074,-212.385775,0.000248,7]
[357162616,1743831628095,-212.385775,0.000248,7]
[357162617,1743831628117,-151.2,0.0002489,2]
[357162618,1743831628137,-247.662041,0.000249,7]
[357162619,1743831628158,-153.304928,0.000249,7]
[357162620,1743831628179,-152.763861,0.000249,7]
[357162621,1743831628200,-151.0,0.000249,7]
[357162622,1743831628220,-151.0,0.000249,7]
[357162623,1743831628241,-151.0,0.000249,7]
[357162624,1743831628262,-151.0,0.000249,7]
[357162625,1743831628284,-151.0,0.000249,7]
[357162626,1743831628308,-151.0,0.000249,7]
[357162627,1743831628329,-151.0,0.000249,7]
[357162628,1743831628351,-254.486794,0.000249,7]
[357162629,1743831628373,-151.0,0.000249,7]
[357162630,1743831628396,-171.710996,0.000249,7]
[357162631,1743831628416,-171.710996,0.000249,7]
[357162632,1743831628437,-162.795955,0.000249,7]
[357162633,1743831628459,-162.795955,0.000249,7]
[357162634,1743831628480,-151.0,0.000249,7]
[357162635,1743831628500,-151.0,0.000249,7]
[357162636,1743831628521,-156.499226,0.000249,7]
[357162637,1743831628542,-156.499226,0.000249,7]
[357162638,1743831628563,-151.0,0.000249,7]
[357162639,1743831628584,-1418.878251,0.000249,7]
[357162640,1743831628605,-1418.878251,0.000249,7]
[357162641,1743831628626,-151.0,0.000249,7]
[357162642,1743831628647,-289.447032,0.000249,7]
[357162643,1743831628668,-229.626531,0.000249,7]
[357162644,1743831628689,-479.299348,0.000249,7]
[357162645,1743831628711,-479.299348,0.000249,7]
[357162646,1743831628732,-151.0,0.000249,7]
[357162647,1743831628752,-151.0,0.000249,7]
[357162648,1743831628773,-181.926573,0.000249,7]
[357162649,1743831628794,-151.0,0.000249,7]
[357162650,1743831628815,-181.926573,0.000249,7]
[357162651,1743831628835,-151.0,0.000249,7]
[357162652,1743831628855,-208.604045,0.000249,7]
[357162653,1743831628876,-151.0,0.000249,7]
[357162654,1743831628898,-261626.164546,0.000249,3]
[357162655,1743831628920,-151.0,0.000249,7]
[357162656,1743831628942,-151.0,0.000249,7]
[357162657,1743831628963,-448.10573,0.000249,7]
[357162658,1743831628985,-448.10573,0.000249,7]
[357162659,1743831629006,-151.0,0.000249,7]
[357162660,1743831629028,-151.0,0.000249,7]
[357162661,1743831629050,-151.0,0.000249,7]
[357162662,1743831629074,-1501.63692,0.000249,7]
[357162663,1743831629096,-151.0,0.000249,7]
[357162664,1743831629119,-1501.63692,0.000249,7]
[357162665,1743831629141,-212.385775,0.000249,7]
[357162666,1743831629162,-212.385775,0.000249,7]
[357162667,1743831629183,-2141.65784103,0.00025,2]
[357162668,1743831629204,-1756.1689942,0.00025,2]
[357162669,1743831629225,-1024.20272401,0.00025,2]
[357162670,1743831629246,-160.93339411,0.00025,2]
[357162671,1743831629267,-2000.0,0.00025,4]
[357162672,1743831629288,-3250.5879114,0.000251,2]
[357162673,1743831629312,-4800.0,0.000251,5]
[357162674,1743831629332,-500.0,0.00025201,2]
[357162675,1743831629352,-500.0,0.00025201,2]
[357162676,1743831629373,-500.0,0.00025201,2]
[357162677,1743831629394,-547.67038301,0.00025201,2]
[357162678,1743831629517,-166.25,0.00025607,2]
[357162679,1743831629539,-493.025,0.0002598,2]
[357162680,1743831629560,-427.933,0.0002598,2]
[357162681,1743831629582,-790.0,0.0002598,2]
[357162682,1743831629602,-328.253,0.0002598,2]
[357162683,1743831629623,-626.228,0.0002598,2]
[357162684,1743831629643,-2042.0,0.0002599,2]
[357162685,1743831629664,-151.0,0.0002599,2]
[357162686,1743831629685,-576.86654986,0.0002599,2]
[357162687,1743831629705,-4346.31764777,0.00026,2]
[357162688,1743831629726,-150.0,0.00026027,2]
[357162689,1743831629747,-402.1793339,0.00026227,2]
[357162690,1743831629768,-358.75,0.00026252,2]
[357162691,1743831629789,-168.52,0.00026252,2]
[357162692,1743831629810,-25694.88626721,0.000264,2]
[357162693,1743831629831,-152.63,0.00026447,2]
[357162694,1743831629852,-250.0,0.00026538,2]
[357162695,1743831629874,-150.99,0.00026591,2]
[357162696,1743831629894,-9999.99,0.00026591,2]
[357162697,1743831629914,-152.0,0.00026617,3]
[357162698,1743831629935,-1493.93,0.00026666,2]
[357162699,1743831629956,-151.0,0.00026849,7]
[357162700,1743831629979,-151.0,0.00026849,7]
[357162701,1743831630001,-151.0,0.00026849,7]
[357162702,1743831630022,-448.10573,0.00026849,7]
[357162703,1743831630043,-448.10573,0.00026849,7]
[357162704,1743831630065,-256.082242,0.00026849,7]
[357162705,1743831630087,-151.0,0.00026849,7]
[357162706,1743831630108,-151.0,0.00026849,7]
[357162707,1743831630130,-1501.63692,0.00026849,7]
[357162708,1743831630150,-151.0,0.00026849,7]
[357162709,1743831630172,-1501.63692,0.00026849,7]
[357162710,1743831630194,-212.385775,0.00026849,7]
[357162711,1743831630215,-212.385775,0.00026849,7]
[357162712,1743831630238,-261.78,0.00026849,2]
[357162713,1743831630259,-694.1,0.00026849,2]
[357162714,1743831630282,-500.0,0.00026871,2]
[357162715,1743831630305,-156.499226,0.000269,7]
[357162716,1743831630327,-156.499226,0.000269,7]
[357162717,1743831630349,-1418.878251,0.000269,7]
[357162718,1743831630371,-1418.878251,0.000269,7]
[357162719,1743831630394,-151.0,0.000269,7]
[357162720,1743831630415,-151.0,0.000269,7]
[357162721,1743831630440,-151.0,0.000269,7]
[357162722,1743831630461,-152.0,0.00026964,4]
[357162723,1743831630483,-1000.0,0.00027055,2]
[357162724,1743831630505,-479.299348,0.00027055,7]
[357162725,1743831630527,-479.299348,0.00027055,7]
[357162726,1743831630548,-156.816364,0.00027055,7]
[357162727,1743831630569,-181.926573,0.00027055,7]
[357162728,1743831630590,-181.926573,0.00027055,7]
[357162729,1743831630613,-171.710996,0.000271,7]
[357162730,1743831630634,-171.710996,0.000271,7]
[357162731,1743831630656,-162.795955,0.000271,7]
[357162732,1743831630679,-162.795955,0.000271,7]
[357162733,1743831630701,-152.0,0.00027312,5]
[357162734,1743831630723,-151.0,0.00027397,7]
[357162735,1743831630744,-191.335559,0.00027397,7]
[357162736,1743831630766,-151.0,0.00027397,7]
[357162737,1743831630786,-151.0,0.00027397,7]
[357162738,1743831630807,-150.0,0.00027397,2]
[357162739,1743831630828,-8316.82,0.00027397,15]
[357162740,1743831630849,-151.0,0.00027397,7]
[357162741,1743831630870,-151.0,0.00027397,7]
[357162742,1743831630891,-151.0,0.00027397,7]
[357162743,1743831630912,-151.0,0.00027397,7]
[357162744,1743831630933,-151.0,0.00027397,7]
[357162745,1743831630953,-151.0,0.00027397,7]
[357162746,1743831630974,-151.0,0.00027397,7]
[357162747,1743831630994,-151.0,0.00027397,7]
[357162748,1743831631014,-151.0,0.00027397,7]
[357162749,1743831631035,-213.34983,0.00027397,7]
[357162750,1743831631057,-2092.73,0.00027397,2]
[357162751,1743831631077,-650.0,0.000274,2]
[357162752,1743831631098,-521.97762035,0.0002745,13]
[357162753,1743831631119,-4270.08765063,0.000275,2]
[357162754,1743831631141,-828.57611157,0.000275,4]
[357162755,1743831631162,-501.69704468,0.00027607,5]
[357162756,1743831631183,-152.0,0.00027659,6]
[357162757,1743831631204,-7313.62999992,0.00027767,2]
[357162758,1743831631226,-152.0,0.00028007,7]
[357162759,1743831631248,-152.0,0.00028354,8]
[357162760,1743831631269,-167.0505,0.0002842,2]
[357162761,1743831631291,-152.0,0.00028702,9]
[357162762,1743831631318,-827.32,0.00028721,2]
[357162763,1743831631340,-150.0,0.00028767,2]
[357162764,1743831631362,-2092.73,0.00028767,2]
[357162765,1743831631384,-152.63,0.00028851,2]
[357162766,1743831631406,-1493.93,0.0002893,2]
[357162767,1743831631429,-477.596,0.0002898,2]
[357162768,1743831631555,-479.331,0.0002899,2]
[357162769,1743831631580,-151.0,0.0002899,2]
[357162770,1743831631602,-2373.20977656,0.00029,7]
[357162772,1743831647377,12015.7695,0.000199,2]
[357162773,1743831660575,178.6223902,0.0002812,4]
[357162774,1743831673918,319.92,0.00026849,2]
[357162775,1743831674323,1340.6696316,0.00026312,2]
[357162776,1743831705592,178.6223903,0.0002812,4]
[357162777,1743831710848,-152.0,0.00029049,10]
[357162778,1743831710870,-158.56475731,0.00029297,2]
[357162779,1743831710892,-152.0,0.00029397,11]
[357162780,1743831710914,-903.17,0.00029425,2]
[357162781,1743831710936,-155.59,0.00029425,2]
[357162782,1743831710958,-174.7,0.00029425,2]
[357162783,1743831710980,-299.56,0.00029441,2]
[357162784,1743831711002,-1000.0,0.00029514,2]
[357162785,1743831711024,-158.56475731,0.00029599,2]
[357162786,1743831711045,-784.33,0.0002968,2]
[357162787,1743831711067,-150.0,0.000297,2]
[357162788,1743831711091,-784.33,0.000297,2]
[357162789,1743831711112,-152.0,0.00029744,12]
[357162790,1743831711134,-158.56475731,0.000299,2]
[357162791,1743831711156,-466.0,0.0002997,5]
[357162792,1743831711178,-606.28288378,0.0002997,2]
[357162793,1743831711200,-574.66464858,0.00029973,5]
[357162794,1743831711222,-150.0,0.00029988,2]
[357162795,1743831711253,-150.0,0.00029988,2]
[357162796,1743831711279,-151.2,0.0002999,2]
[357162797,1743831711303,-287.35883568,0.0003,2]
[357162798,1743831711326,-7000.0,0.0003,10]
[357162799,1743831711352,-46010.94573499,0.0003,2]
[357162800,1743831711381,-34627.72358534,0.0003,5]
[357162801,1743831711424,-148366.03108727,0.0003,2]
[357162802,1743831711463,-556.10765853,0.0003,2]
[357162803,1743831711503,-500.86680132,0.0003,2]
[357162804,1743831711537,-151.0,0.0003,7]
[357162805,1743831711572,-264.381092,0.0003,7]
[357162806,1743831711607,-151.0,0.0003,7]
[357162807,1743831711642,-151.0,0.0003,7]
[357162808,1743831711676,-171.710996,0.0003,7]
[357162809,1743831711713,-171.710996,0.0003,7]
[357162810,1743831711746,-171.710996,0.0003,7]
[357162811,1743831711780,-171.710996,0.0003,7]
[357162812,1743831711807,-162.795955,0.0003,7]
[357162813,1743831711839,-162.795955,0.0003,7]
[357162814,1743831711866,-162.795955,0.0003,7]
[357162815,1743831711898,-162.795955,0.0003,7]
[357162816,1743831711926,-156.499226,0.0003,7]
[357162817,1743831711955,-156.499226,0.0003,7]
[357162818,1743831711983,-156.499226,0.0003,7]
[357162819,1743831712013,-156.499226,0.0003,7]
[357162820,1743831712041,-151.0,0.0003,7]
[357162821,1743831712069,-151.0,0.0003,7]
[357162822,1743831712104,-261.069495,0.0003,7]
[357162823,1743831712136,-152.447004,0.0003,7]
[357162824,1743831712168,-479.299348,0.0003,7]
[357162825,1743831712199,-479.299348,0.0003,7]
[357162826,1743831712229,-479.299348,0.0003,7]
[357162827,1743831712259,-479.299348,0.0003,7]
[357162828,1743831712289,-219.515354,0.0003,7]
[357162829,1743831712321,-181.926573,0.0003,7]
[357162830,1743831712354,-181.926573,0.0003,7]
[357162831,1743831712386,-260.504563,0.0003,7]
[357162832,1743831712417,-181.926573,0.0003,7]
[357162833,1743831712447,-181.926573,0.0003,7]
[357162834,1743831712479,-151.0,0.0003,7]
[357162835,1743831712503,-151.0,0.0003,7]
[357162836,1743831712526,-151.0,0.0003,7]
[357162837,1743831712548,-151.0,0.0003,7]
[357162838,1743831712570,-161.266914,0.0003,7]
[357162839,1743831712782,-151.0,0.0003,7]
[357162840,1743831712804,-151.0,0.0003,7]
[357162841,1743831712826,-151.0,0.0003,7]
[357162842,1743831712847,-151.0,0.0003,7]
[357162843,1743831712868,-448.10573,0.0003,7]
[357162844,1743831712889,-448.10573,0.0003,7]
[357162845,1743831712910,-448.10573,0.0003,7]
[357162846,1743831712931,-448.10573,0.0003,7]
[357162847,1743831712953,-151.0,0.0003,7]
[357162848,1743831712974,-151.0,0.0003,7]
[357162849,1743831712995,-151.0,0.0003,7]
[357162850,1743831713018,-1501.63692,0.0003,7]
[357162851,1743831713039,-151.0,0.0003,7]
[357162852,1743831713062,-1501.63692,0.0003,7]
[357162853,1743831713084,-151.0,0.0003,7]
[357162854,1743831713105,-151.0,0.0003,7]
[357162855,1743831713127,-1501.63692,0.0003,7]
[357162856,1743831713149,-1501.63692,0.0003,7]
[357162857,1743831713170,-151.0,0.0003,7]
[357162858,1743831713191,-174.655753,0.0003,7]
[357162859,1743831713213,-151.0,0.0003,7]
[357162860,1743831713235,-212.385775,0.0003,7]
[357162861,1743831713257,-212.385775,0.0003,7]
[357162862,1743831713278,-212.385775,0.0003,7]
[357162863,1743831713301,-212.385775,0.0003,7]
[357162864,1743831713322,-212.0,0.0003,2]
[357162865,1743831713379,200.0,0.00029239,2]
[357162866,1743831713414,370.0,0.000229,2]
[357162867,1743831750563,178.6223903,0.000291,4]
[357162870,1743831765538,2500.0,0.000299,2]
[357162872,1743831788000,234.0,0.000229,2]
[357162873,1743831794185,327.19062252,0.00029992,2]
[357162875,1743831831853,364.9361,0.000299,2]
[357162879,1743831966777,200.43002383,0.0003,2]
[357162881,1743832010622,172.68004146,0.0002997,2]
[357162882,1743832014997,433.0,0.000229,2]
[357162883,1743832046925,185.09,0.00013699,2]
[357162885,1743832071336,443.06146178,0.0003,7]
[357162886,1743832091433,926.0,0.000229,2]
[357162887,1743832148394,183.438661,7.945e-05,2]
[357162892,1743832213652,151.0,0.0002099,2]
[357162896,1743832231731,-400.0,0.00030029,2]
[357162897,1743832231743,-1672.97801103,0.0003003,2]
[357162898,1743832231842,-1121.64177466,0.0003003,2]
[357162899,1743832231911,-6617.25393517,0.0003003,2]
[357162900,1743832231923,-1408.38516504,0.0003003,2]
[357162901,1743832232038,-1998.1988738,0.0003003,2]
[357162902,1743832232047,-1655.90767624,0.0003003,2]
[357162903,1743832232058,-3498.72039946,0.0003003,2]
[357162904,1743832232068,-6732.6094639,0.0003005,2]
[357162905,1743832232077,-152.0,0.00030092,13]
[357162906,1743832232087,-250.0,0.00030114,2]
[357162907,1743832232096,-150.0,0.00030136,2]
[357162908,1743832232105,-609.01,0.00030137,2]
[357162909,1743832232115,-2092.73,0.00030137,2]
[357162910,1743832232124,-250.0,0.00030161,2]
[357162911,1743832232134,-2772.32688309,0.00030187,3]
[357162913,1743832232266,-1343.02500153,0.00030187,3]
[357162924,1743832232392,-1054.28721797,0.00030187,3]
[357162925,1743832232404,-1073.90425003,0.00030187,3]
[357162934,1743832237694,-3684.07404606,0.00030187,3]
[357162935,1743832237705,-4850.43578301,0.00030187,3]
[357162936,1743832237749,-1378.62714229,0.00030187,3]
[357162937,1743832237806,-378.00513087,0.00030187,3]
[357162938,1743832237817,-1326.66561413,0.00030187,3]
[357162939,1743832237863,-1019.96438707,0.00030187,3]
[357162940,1743832237874,-5686.88103888,0.00030187,3]
[357162941,1743832237919,-3211.91999948,0.00030187,3]
[357162942,1743832237976,-278.35824588,0.00030187,3]
[357162943,1743832237988,-1144.63046961,0.00030187,3]
[357162944,1743832238000,-3600.0,0.00030187,3]
[357162945,1743832238038,-3997.606726,0.00030187,3]
[357162946,1743832238050,-2559.33589369,0.00030187,3]
[357162967,1743832239936,-1237.16124201,0.00030187,3]
[357162969,1743832239948,-3026.38619405,0.00030187,3]
[357162971,1743832239957,-834.2495785,0.00030252,5]
[357162973,1743832239967,-150.99,0.00030252,2]
[357162975,1743832239976,-784.33,0.000303,2]
[357162977,1743832239985,-444.9,0.000303,2]
[357162980,1743832239994,-444.9,0.000303,2]
[357162982,1743832240003,-784.33,0.000303,2]
[357162984,1743832240013,-448.53,0.000303,2]
[357162986,1743832240022,-315.0683,0.00030411,2]
[357162987,1743832240031,-152.0,0.00030439,14]
[357162989,1743832240040,-444.9,0.000305,2]
[357162991,1743832240050,-784.33,0.000305,2]
[357162993,1743832240061,-323.12104763,0.000305,2]
[357162995,1743832240072,-461.20895237,0.000305,2]
[357162996,1743832240081,-1815.69871967,0.00030511,2]
[357162998,1743832240093,-9291.12151354,0.00030511,2]
[357163000,1743832240104,-602.76063078,0.00030511,2]
[357163002,1743832240115,-1714.05964372,0.00030511,2]
[357163004,1743832240126,-801.47236212,0.00030511,2]
[357163005,1743832240138,-2901.23229554,0.00030511,2]
[357163006,1743832240233,-413.15347707,0.00030511,2]
[357163007,1743832240244,-1311.94688929,0.00030511,2]
[357163008,1743832240256,-500.0,0.00030511,2]
[357163009,1743832240267,-1040.86171865,0.00030511,2]
[357163010,1743832240299,-1822.84594104,0.00030511,2]
[357163011,1743832240309,-212.385775,0.0003064,7]
[357163012,1743832240318,-444.9,0.0003064,2]
[357163013,1743832240327,-444.9,0.0003064,2]
[357163014,1743832240336,-1032.57222317,0.00030679,2]
[357163015,1743832240345,-1019.92854175,0.00030679,2]
[357163016,1743832240354,-1093.73149033,0.00030679,2]
[357163017,1743832240364,-152.0,0.00030787,15]
[357163018,1743832240374,-106.84040089,0.00030823,2]
[357163019,1743832240386,-1075.23959911,0.00030823,2]
[357163020,1743832240395,-112.92788085,0.00030832,2]
[357163112,1743832241308,-150.0,0.00030832,2]
[357163125,1743832242830,-30.35211915,0.00030832,2]
[357163126,1743832242839,-156.74,0.00030863,2]
[357163127,1743832242849,-256.44,0.00030863,4]
[357163128,1743832242858,-49.5649442,0.00031055,2]
[357163129,1743832242870,-6597.416152,0.00031055,2]
[357163131,1743832243785,-12477.80729397,0.00031055,2]
[357163132,1743832243796,-1193.50160983,0.00031055,2]
[357163133,1743832243806,-291.968203,0.00031075,2]
[357163134,1743832243815,-4195.84698336,0.00031126,2]
[357163159,1743832250249,-19704.15301664,0.00031126,2]
[357163160,1743832250259,-152.0,0.00031134,16]
[357163161,1743832250268,-1493.93,0.00031194,2]
[357163162,1743832250277,-632.07314279,0.00031241,2]